Cogmind - Beta 17.1 @@@ ROGUE MODE // 2026.09.11 @ 23:02:35 Player: Lazz Result: Destroyed by H-61 Shepherd with Heavy Assault Cannon Performance ------------- Evolutions (2) 1000 Regions Visited (5) 1000 Robots Destroyed (25) 125 Value Destroyed (624) 624 Prototype IDs (24) 480 Alien Tech Used (0) 0 Bonus (-344) -344 TOTAL SCORE: 2885 Bonus ------- Aligned with FarCom 300 Friendly Fire -644 Cogmind --------- Core Integrity 0/550 Matter 285/300 Energy 93/100 System Corruption 0% Temperature Cool (0) Movement Hovering (70) Location -8/Materials Parts ------- > --- POWER (1) -------- (None) > --- PROPULSION (4) --- Makeshift Hover Unit > --- UTILITY (4) ------ EX Chip 2 > --- WEAPON (2) ------- Longsword +1 > --- INVENTORY (5) ---- Seismic Detector YOLO Cannon Peak State ------------ > --- POWER ------------ Light Nuclear Core > --- PROPULSION ------- Medium Treads Medium Treads Medium Treads Medium Treads > --- UTILITY ---------- Huge Storage Unit EX Chip 2 EX Chip 2 System Purifier > --- WEAPON ----------- YOLO Cannon > --- INVENTORY -------- Light Treads Light Treads Makeshift Hover Unit Improved Terrain Scanner Seismic Detector Tractor Beam Longsword +1 [Rating: 55] Favorites ----------- Power Light Ion Engine Engine Light Ion Engine Power Core Light Nuclear Core Propulsion Light Treads Treads Light Treads Hover Unit Makeshift Hover Unit Utility Small Storage Unit Device Seismic Detector Storage Small Storage Unit Hackware EX Chip 2 Weapon Assault Rifle Energy Cannon YOLO Cannon Ballistic Gun Assault Rifle Slashing Weapon Longsword +1 Build | -11 -10 -10 -10 -9 -8 ------- Run | Yrd Mat Min Exi Min Mat Slots Evolved 4 | . . . . . 4 Power . | . . . . . . Propulsion 2 | . . . . . 2 Utility 2 | . . . . . 2 Weapon . | . . . . . . Parts Attached 20 | 7 . . 3 . 10 Power 2 | 1 . . . . 1 Engine 1 | 1 . . . . . Core 1 | . . . . . 1 Reactor . | . . . . . . Propulsion 7 | 2 . . . . 5 Treads 6 | 2 . . . . 4 Leg . | . . . . . . Wheel . | . . . . . . Hover 1 | . . . . . 1 Flight . | . . . . . . Utility 7 | 2 . . 2 . 3 Device 2 | 1 . . . . 1 Storage 2 | 1 . . . . 1 Processor . | . . . . . . Hackware 3 | . . . 2 . 1 Protection . | . . . . . . Artifact . | . . . . . . Weapon 4 | 2 . . 1 . 1 Energy Gun . | . . . . . . Energy Cannon 1 | . . . 1 . . Ballistic Gun 2 | 2 . . . . . Ballistic Cannon . | . . . . . . Launcher . | . . . . . . Special Weapon . | . . . . . . Impact Weapon . | . . . . . . Slashing Weapon 1 | . . . . . 1 Piercing Weapon . | . . . . . . Special Melee Weapon . | . . . . . . Unidentified Prototypes 1 | . . . . . 1 Parts Lost 10 | . . 1 . . 9 Power 2 | . . 1 . . 1 Propulsion 6 | . . . . . 6 Utility 2 | . . . . . 2 Weapon . | . . . . . . Highest Loss Streak 9 | . . 1 . . 9 To Critical Strikes . | . . . . . . Average Backups 4 | 1 4 4 5 8 6 Power . | . . . . . . Propulsion 1 | . 1 1 1 1 1 Utility 2 | . 2 2 3 5 3 Weapon 1 | . 1 1 1 1 1 Tool/Special . | . . . . . . Unused Backups 5 | . . . 1 1 3 Power . | . . . . . . Propulsion 1 | . . . 1 . . Utility 3 | . . . . . 3 Weapon 1 | . . . . 1 . Tool/Special . | . . . . . . Average Slot Usage (%) 78 | . 100 90 78 71 64 Engine 2 | . 14 4 . . . Treads 26 | . 28 28 28 28 24 Device 10 | . 14 14 12 . 6 Storage 12 | . 14 14 14 14 7 Hackware 5 | . . . 1 14 15 Energy Cannon 5 | . . . 6 14 6 Ballistic Gun 13 | . 28 28 14 . . Peak Build Rating 55 | 7 7 7 28 28 55 Average Rating 18 | 5 7 6 15 28 39 On Entrance 12 | . 7 7 6 28 28 Avg Prop Armor Cover (%) . | . . . . . . Naked Turns . | . . . . . . Heaviest Build 102 | 12 12 12 24 23 102 Greatest Support 112 | 40 40 40 40 40 112 Greatest Overweight (x) 2 | 2 . . . . 1 Average Overweight (x) . | . . . . . . Largest Inventory Capacity 25 | 8 8 8 8 8 25 Average Capacity 10 | 7 8 8 8 8 18 Most Carried 9 | 4 4 5 8 8 9 Average Carried 5 | 1 4 4 5 8 6 Final Capacity 8 | 8 8 8 8 8 5 Final Carried 8 | 4 4 5 8 8 3 Class Distribution -------------------- 100% | Mutant Dominant Class ---------------- Mutant | -10/Materials Mutant | -10/Mines Mutant | -10/Exiles Mutant | -9/Mines Mutant | -8/Materials Resources | -11 -10 -10 -10 -9 -8 ----------- Run | Yrd Mat Min Exi Min Mat Matter Collected 494 | 302 11 76 13 17 75 Remotely . | . . . . . . Salvage Created 823 | 144 34 199 13 103 330 Parts 51 | 11 4 7 10 8 11 Haulers Intercepted . | . . . . . . Recyclers Shooed 5 | 1 1 1 . . 2 Parts Field Recycled . | . . . . . . Retrieved Matter . | . . . . . . Parts Self-Destructed . | . . . . . . Prevented . | . . . . . . Parts Restored . | . . . . . . Kills | -11 -10 -10 -10 -9 -8 ------- Run | Yrd Mat Min Exi Min Mat Combat Hostiles Destroyed 15 | . 3 2 . 3 7 Melee 2 | . . . . . 2 Guns 5 | . 3 2 . . . Cannons 4 | . . . . 2 2 AOE 3 | . . . . 1 2 Classes Destroyed 7 | 2 1 2 . 1 1 Worker 2 | . . 1 . 1 . Builder 1 | . . . . 1 . Tunneler 3 | 3 . . . . . Recycler 2 | 1 . 1 . . . Operator 1 | . . . . . 1 Swarmer 3 | . 3 . . . . Grunt 12 | . . 2 . 3 7 Best Kill Streak 5 | 4 3 1 . 5 4 Combat Bots Only 4 | . 3 1 . 3 4 Max Kills in Single Turn 2 | 1 1 1 1 2 2 Gunslinging . | . . . . . . Exploded 1 | . . . . 1 1 Melee 1 | . . . . . 1 Uniques/NPCs Destroyed 1 | . . . 1 . . EX-BIN (-10/Exiles) Combat | -11 -10 -10 -10 -9 -8 -------- Run | Yrd Mat Min Exi Min Mat Hostile Shots Fired 140 | . 14 8 6 11 101 Missed 38 | . 2 1 3 5 27 Hits 102 | . 12 7 3 6 74 Projectile 102 | . 12 7 3 6 74 Critical Strikes 9 | . . . 3 . 6 Damage Taken 2059 | . 94 109 66 66 1724 Core 641 | . 7 44 . 21 569 Absorbed by Shields . | . . . . . . Core Remaining (%) 85 | 100 . . . 71 . Volleys Fired 40 | 8 10 13 1 3 5 Largest 2 | 2 2 2 1 1 1 Hottest 100 | 40 40 40 100 100 100 Shots Fired 71 | 16 20 26 1 3 5 Gun 62 | 16 20 26 . . . Cannon 9 | . . . 1 3 5 Launcher . | . . . . . . Special . | . . . . . . Kinetic 62 | 16 20 26 . . . Thermal 9 | . . . 1 3 5 Explosive . | . . . . . . Electromagnetic . | . . . . . . Robot Hit Streak 10 | 5 9 10 . 2 3 Robot Miss Streak 2 | 1 1 2 1 2 1 Penetration Max . | . . . . . . Secondary Targets 1 | . 1 . . . . Max Gunslinging Chain 1 | . 1 . . . . Shots Hit Robots 62 | 9 15 21 . 2 15 Core Hits 32 | 5 4 9 2 5 7 Critical Kills 1 | . . . . . 1 Critical Parts Destroyed 1 | . . 1 . . . Critical Strikes 3 | . . 1 . . 2 Meltdown 1 | . . . . . 1 Destroy 1 | . . 1 . . . Sever 1 | . . . . . 1 Melee Attacks 14 | . . . . . 14 Impact . | . . . . . . Slashing 14 | . . . . . 14 Piercing . | . . . . . . Sneak Attacks . | . . . . . . Combat Hostiles . | . . . . . . Follow-up Attacks . | . . . . . . Damage Inflicted 2533 | 131 163 207 48 570 1414 Guns 501 | 131 163 207 . . . Cannons 727 | . . . . 240 487 Explosions 919 | . . . 48 330 541 Melee 358 | . . . . . 358 Ramming 28 | . . . . . 28 Kinetic 501 | 131 163 207 . . . Thermal 1646 | . . . 48 570 1028 Explosive . | . . . . . . Electromagnetic . | . . . . . . Impact . | . . . . . . Slashing 358 | . . . . . 358 Piercing . | . . . . . . Highest Corruption . | . . . . . . Average Corruption . | . . . . . . Corruption Purged . | . . . . . . Corruption Blocked . | . . . . . . Overload Shots . | . . . . . . Overflow Damage 272 | . . . . 51 221 Projectiles 205 | . . . . 51 154 Explosions 67 | . . . . . 67 Melee . | . . . . . . Knockbacks . | . . . . . . Impact . | . . . . . . Kinetic . | . . . . . . Secondary . | . . . . . . Self-Inflicted Damage 57 | . . . . . 57 Shots 1 | . . . . . 1 Rammed 3 | . . . . . 3 Targets Rammed 3 | . . . . . 3 Kicked . | . . . . . . Crushed . | . . . . . . Highest Temperature 58 | . . 9 . 18 58 Average Temperature 15 | . . 7 . 12 20 Received Heat Transfer 672 | . . 60 . 36 576 Siege Activations . | . . . . . . Martial Activations . | . . . . . . Shielding Activations . | . . . . . . Robots Disrupted . | . . . . . . Combat Hostiles . | . . . . . . Robots Corrupted . | . . . . . . Combat Hostiles . | . . . . . . Parts Fried . | . . . . . . Impact Corruptions . | . . . . . . Robots Melted 1 | . . . . . 1 Combat Hostiles 1 | . . . . . 1 Parts Melted 4 | . . . 3 . 1 Heat Transferred 1520 | . . . 80 560 880 Parts Sabotaged . | . . . . . . Parts Stolen . | . . . . . . Parts Stripped . | . . . . . . Power Chain Reactions . | . . . . . . Alert | -11 -10 -10 -10 -9 -8 ------- Run | Yrd Mat Min Exi Min Mat Maximum Alert Level . | . . . . . . Low Security (%) 100 | 100 100 100 . 100 100 Level 1 . | . . . . . . Level 2 . | . . . . . . Level 3 . | . . . . . . Level 4 . | . . . . . . Level 5 . | . . . . . . High Security . | . . . . . . Max Security . | . . . . . . Peak Influence 102 | 20 60 30 . 91 102 Initial 27 | . . 15 . . 27 Average 27 | 2 31 10 . 76 38 Influence Increases 492 | 20 70 60 . 101 241 Destroy 0b10 Robot/C 300 | . 60 40 . 60 140 Destroy 0b10 Robot/NC 45 | 20 . 10 . 10 5 Destroy Leader 50 | . 10 10 . 10 20 Disable Machine 15 | . . . . . 15 Destroy Structure 82 | . . . . 21 61 Influence Decreases 452 | 20 30 100 . 30 272 Entered New Map 69 | . . 25 . . 44 Time Decay 245 | 20 30 65 . 30 100 Lost Part 100 | . . 10 . . 90 Purge Threat 38 | . . . . . 38 Squads Dispatched 2 | . . . . . 2 Investigation . | . . . . . . Extermination . | . . . . . . Reinforcement 2 | . . . . . 2 Assault . | . . . . . . Garrison . | . . . . . . Intercept . | . . . . . . Searches Triggered . | . . . . . . Construction Impeded 1 | . . . . . 1 Haulers Reinforced . | . . . . . . Active Scanning Responses . | . . . . . . Cargo Convoy Interrupts . | . . . . . . Stealth | -11 -10 -10 -10 -9 -8 --------- Run | Yrd Mat Min Exi Min Mat Distress Signals 1 | . . . . . 1 Communications Jammed . | . . . . . . Distress Signals . | . . . . . . Times Spotted 26 | . 4 2 1 2 17 Peak Tracking Total 8 | . 3 2 3 2 8 Tactical Retreats . | . . . . . . Traps | -11 -10 -10 -10 -9 -8 ------- Run | Yrd Mat Min Exi Min Mat Traps Triggered . | . . . . . . Indirectly . | . . . . . . Trap Hack Attempts . | . . . . . . Triggered . | . . . . . . Disarmed 1 | . . . . . 1 Reprogrammed . | . . . . . . Reused . | . . . . . . Traps Extracted . | . . . . . . Installed . | . . . . . . Triggered . | . . . . . . Machines | -11 -10 -10 -10 -9 -8 ---------- Run | Yrd Mat Min Exi Min Mat Machines Disabled 1 | . . . . . 1 Max in Single Turn 1 | . . . . . 1 Machines Repaired . | . . . . . . Machines Dismantled . | . . . . . . Machines Sabotaged . | . . . . . . Overloaded Fab Kills . | . . . . . . Hacking | -11 -10 -10 -10 -9 -8 --------- Run | Yrd Mat Min Exi Min Mat Machines Accessed 4 | . 1 . 1 . 2 Terminals 3 | . 1 . . . 2 Fabricators . | . . . . . . Repair Stations . | . . . . . . Recycling Units . | . . . . . . Scanalyzers . | . . . . . . Garrison Access . | . . . . . . Total Hacks 14 | . 3 . 1 . 10 Successful 6 | . 1 . 1 . 4 Failed 8 | . 2 . . . 6 Catastrophic 1 | . . . . . 1 Database Lockouts . | . . . . . . Manual 6 | . 3 . 1 . 2 Terminals 13 | . 3 . . . 10 Fabricators . | . . . . . . Repair Stations . | . . . . . . Recycling Units . | . . . . . . Scanalyzers . | . . . . . . Garrison Access . | . . . . . . Terminal Hacks 6 | . 1 . 1 . 4 Robot Analysis 1 | . 1 . . . . Terminal Index 1 | . . . . . 1 Unreport Threat 1 | . . . . . 1 Disarm Traps 1 | . . . . . 1 Zone Layout 1 | . . . . . 1 Proto ID Catalog 1 | . . . 1 . . Fabricator Hacks . | . . . . . . Repair Station Hacks . | . . . . . . Recycling Unit Hacks . | . . . . . . Scanalyzer . | . . . . . . Garrison Access Hacks . | . . . . . . Unauthorized Hacks . | . . . . . . Terminals . | . . . . . . Fabricators . | . . . . . . Repair Stations . | . . . . . . Recycling Units . | . . . . . . Scanalyzers . | . . . . . . Garrison Access . | . . . . . . Data Cores Recovered 1 | . . . . . 1 Used 1 | . . . . . 1 Hacking Detections 3 | . 1 . . . 2 Full Trace Events . | . . . . . . Feedback Events . | . . . . . . Feedback Blocked . | . . . . . . Robot Schematics Acquired . | . . . . . . Robots Built . | . . . . . . Authchips . | . . . . . . Time . | . . . . . . Total Robot Build Rating . | . . . . . . Part Schematics Acquired . | . . . . . . Parts Built . | . . . . . . Authchips . | . . . . . . Time . | . . . . . . Total Part Build Rating . | . . . . . . Part Studies Acquired . | . . . . . . Parts Repaired . | . . . . . . Time . | . . . . . . Parts Recycled . | . . . . . . Recycled Matter . | . . . . . . Retrieved Matter . | . . . . . . Retrieved Components . | . . . . . . Parts Scanalyzed . | . . . . . . Part Schematics Acquired . | . . . . . . Parts Damaged . | . . . . . . Bothacking | -11 -10 -10 -10 -9 -8 ------------ Run | Yrd Mat Min Exi Min Mat Used RIF Installer . | . . . . . . Robots Hacked . | . . . . . . Non-combat . | . . . . . . Combat . | . . . . . . Robot Hacks Applied . | . . . . . . Relay Couplers Released . | . . . . . . Fabnet Peak Effective % . | . . . . . . Robots Rewired . | . . . . . . Allies Hacked . | . . . . . . Hacks Repelled . | . . . . . . Allies | -11 -10 -10 -10 -9 -8 -------- Run | Yrd Mat Min Exi Min Mat Total Allies 2 | . . 2 . . . Largest Group 2 | . . 2 2 . . Highest-Rated Group 47 | . . 47 47 . . Highest-Rated Ally 31 | . . 31 31 . . Total Orders . | . . . . . . Ally Attacks . | . . . . . . Total Damage . | . . . . . . Kills . | . . . . . . Allies Corrupted . | . . . . . . Allies Melted . | . . . . . . Intel | -11 -10 -10 -10 -9 -8 ------- Run | Yrd Mat Min Exi Min Mat Active Infowar (turns) 671 | 28 99 199 345 . . Seismic 671 | 28 99 199 345 . . Robot Analysis Total 1 | . 1 . . . . Derelict Logs Recovered 1 | . . 1 . . . Drone Launches . | . . . . . . Drone Recoveries . | . . . . . . Exploration | -11 -10 -10 -10 -9 -8 ------------- Run | Yrd Mat Min Exi Min Mat Turns Passed 1180 | 144 99 199 368 63 307 Spaces Moved 556 | 67 43 70 221 23 132 Core 17 | 13 . . . . 4 Treads 505 | 54 43 70 221 23 94 Legs . | . . . . . . Wheels . | . . . . . . Hover 34 | . . . . . 34 Flight . | . . . . . . Fastest Speed 50 | 50 160 160 160 160 50 Average Speed 154 | 152 160 160 160 160 142 Slowest Speed 240 | 160 160 160 160 160 240 Overloaded Moves . | . . . . . . Propulsion Burnouts . | . . . . . . Robots Hopped . | . . . . . . Potential Cave-ins . | . . . . . . Cave-ins Triggered . | . . . . . . Exploration Rate (%) 21 | 4 23 14 60 7 23 Regions Visited 5 Branch Regions 3 Pre-discovered Areas 1 | . . 1 . . . Known Exits Taken . | . . . . . . Unknown Exits Taken 5 | 1 1 1 1 1 . Scrap Searched 1 | . . . . 1 . Spaces Dug 3 | . . . . . 3 Terrain Destroyed 117 | . . . 13 28 76 Melee 3 | . . . . . 3 Projectile 3 | . . . 1 1 1 AOE 111 | . . . 12 27 72 Terrain Rammed . | . . . . . . Walls Destroyed . | . . . . . . Machines Disabled . | . . . . . . Actions | -11 -10 -10 -10 -9 -8 --------- Run | Yrd Mat Min Exi Min Mat Total 776 | 91 55 134 234 41 221 Wait 121 | 6 3 51 1 14 46 Move 551 | 66 42 69 220 22 132 Hop . | . . . . . . Pick Up 10 | 4 . 1 4 1 . Fast Attach 13 | 7 . . 3 . 3 Attach 8 | . . . . . 8 Detach 3 | . . . . . 3 Swap 3 | . . . . . 3 Drop 10 | . . . 5 1 4 Fire 40 | 8 10 13 1 3 5 Melee 14 | . . . . . 14 Ram . | . . . . . . Kick . | . . . . . . Crush 3 | . . . . . 3 Escape Stasis . | . . . . . . Rewire . | . . . . . . Trap . | . . . . . . Miscellaneous . | . . . . . . Route ------- -11/Scrapyard -10/Materials -10/Mines -10/Exiles -9/Mines -8/Materials History --------- Turn | Location | Event 12 | -11/Scrapyard | Discovered new exit (range 16) 145 | -11/Scrapyard | Entered Materials 232 | -10/Materials | Discovered new exit (range 6) 244 | -10/Materials | Entered Mines 317 | -10/Mines | Build established: Mutant 397 | -10/Mines | Deemed a non-threat by the Exiles lab entrance 397 | -10/Mines | Discovered new exit (range 5) 443 | -10/Mines | Entered Exiles 443 | -10/Exiles | Accompanied by 2 allies 473 | -10/Exiles | Led the pair of lost Derelicts to a safe place 483 | -10/Exiles | Met 8R-AWN 509 | -10/Exiles | Met EX-HEX 557 | -10/Exiles | Met EX-BIN 579 | -10/Exiles | Aligned with FarCom system 581 | -10/Exiles | Given EX-Vault access code 621 | -10/Exiles | Opened EX-Vault 633 | -10/Exiles | Found YOLO Cannon 640 | -10/Exiles | Found Longsword +1 671 | -10/Exiles | Warned to stay clear of 0b10 Research branches 690 | -10/Exiles | Exiles lab attacked by MAIN.C 766 | -10/Exiles | Murdered EX-BIN 767 | -10/Exiles | Attacked by the Exiles 777 | -10/Exiles | Discovered new exit (range 14) 792 | -10/Exiles | Found Prototype Device 811 | -10/Exiles | Stole two prototypes: YOLO Cannon, Longsword +1 811 | -10/Exiles | Entered Mines 811 | -9/Mines | Discovered new exit (range 10) 874 | -9/Mines | Entered Materials 874 | -8/Materials | Evolved 4 slots: Propulsion x2, Utility x2 878 | -8/Materials | Identified System Purifier 1146 | -8/Materials | Core integrity fell below 50% 1151 | -8/Materials | Core integrity fell below 20% 1181 | -8/Materials | Lost 9 parts (1p6n2u) 1181 | -8/Materials | Destroyed by H-61 Shepherd with Heavy Assault Cannon Last Messages --------------- 01129_ Slug penetrates Earth. 01131_ Dropped Huge Storage Unit. 01132_ Dropped Tractor Beam. 01132_ Dropped Imp. Terrain Scanner. 01133_ U-05 Engineer lays Concrete. 01133_ U-05 Engineer builds a Wall. 01134_ U-05 Engineer lays Concrete. 01136_ U-05 Engineer builds a Wall. 01137_ Lgt. Treads destroyed. 01139_ U-05 Engineer lays Concrete. 01141_ Med. Treads destroyed. 01141_ U-05 Engineer builds a Wall. 01141_ U-05 Engineer lays Concrete. 01150_ EX Chip 2 destroyed. 01150_ Critical hit (Blast). 01150_ Knocked back. 01150_ U-05 Engineer builds a Wall. 01159_ K-01 Serf collects debris. 01165_ T-07 Excavator is excavating. 01170_ K-01 Serf collects debris. Map ----- +----------------------------------------------------+ | ###############+##### #####+#????? | | ##"""""##???# # ##?????????? | | # #????# """ # ##?????????? | | # #????# "G" # ##?????????? | | + #????# " " # ##?????????? | | # #????# + ##?????????? | | # #????# """ # ##?????????? | | # #????# """ ! # ##?????????? | | ##########??# """ # ##?????????? | | # #??# # ##?????????? | | # #??####+##### #??????????? | | # #????# g #??????????? | | # ????????????# g #??????????? | | ???????????????# #??????????? | | ???????????????## ##### #??????????? | | ???????????????# ?????# #??????????? | | ??????????????????????# #??????????? | | ??????????????????????#u #??????????? | | ??????????????????????# #??????????? | | ??????????????????????# #??????????? | | ??????????????????????# #??????????? | | ??????????????????????# #??????????? | | ??????????????????????# ##?????????? | | ??????????????????????# ;#?????????? | | ??????????????????????# ##?????????? | | ??????????????????????# @#??????????? | | ??????????????????????# ;#?????????? | | ??????????????????????# % # ????????? | | ??????????????????????# # ???????? | | ??????????????????????# #? ??????? | | ??????????????????????# #??"" ????? | | ??????????????????????# +???" ???? | | ??????????????????????# #???" ??? | | ??????????????????????+ #???? #? | | ??????????????????????#g #?????? ?#? | | ??????????????????????#gg #??????????? | | ??????????????????????# #??????????? | | ??????????????????????# #??????????? | | ??????????????????????# #??????????? | | ?????????????????????? ???????????? | | ??????????????????????? ???????????? | | ?????????????????????????????????????? | | ?????????????????????????????????????? | | ?????????????????????????????????????? | | ?????????????????????????????????????? | | ?????????????????????????????????????? | | ?????????????????????????????????????? | | ?????????????????????????????????????? | | ?????????????????????????????????????? | | ?????????????????????????????????????? | +----------------------------------------------------+ Best States ------------- Heat Dissipation 31 Energy Generation 14 Energy Capacity 160 Matter Stores 300 Matter Capacity 300 Sight Range 16 Terrain Scan Density 10 Evasion (%) 51 Recoil Reduction 4 Offensive Hacking 7 Defensive Hacking 14 Item Schematics ----------------- None Robot Schematics ------------------ None Fabricated ------------ Nothing Repaired ---------- Nothing Studied --------- None Alien Tech Used ----------------- None Achievements -------------- None Challenges ------------ None Game ------ Seed SlugFissionChaingun Manual? 0 Play Time 00:13:33 Cumulative 312.8 hours Start 2026.09.11 @ 22:50:52 End 2026.09.11 @ 23:02:35 Sessions 1 Manual Loads 0 Difficulty Rogue Special Mode None Game No. 385 Rogue 385 Adventurer 0 Explorer 0 Win Type - Total 9 Types 7/0/0/1/0/0/0/1/0/0 Lore% 82 Gallery% 70 Achievement% 59 Wizard Run 0 Options --------- Layout 2 ASCII 0 Keyboard 0 Movement Mouse Keybinds 0 Fullscreen 1 Font 16/SmallcapsGlow Map View 25x24 Zoom Use 99% Tactical HUD 1 Map Filters NONE Filters NONE Steam SD RUN: 14f17fa5-8b31-49e9-b91c-69a96c72f6a9